bitfinex-derivatives/quotes_ETHF0:USTF0_20260118
["timestamp","ask_amount","ask_price","bid_price","bid_amount"]
[1768710431949,0.96794888,3314.7,3313.5,1.46575585]
[1768710432147,0.96794888,3314.6,3313.5,1.46575585]
[1768710432348,0.96794888,3314.5,3313.5,1.46575585]
[1768710432540,0.96794888,3314.4,3313.5,1.46575585]
[1768710432741,0.00251032,3314.8,3313.5,1.46575585]
[1768710432938,0.96799543,3314.7,3313.5,1.46575585]
[1768710433143,0.96799543,3314.6,3313.5,1.46575585]
[1768710433342,0.96799543,3314.5,3313.5,1.46575585]
[1768710433542,0.96799543,3314.4,3313.5,1.46575585]
[1768710433750,0.00251032,3314.8,3313.5,1.46575585]
[1768710433948,0.96800588,3314.7,3313.5,1.46575585]
[1768710434154,0.96800588,3314.6,3313.5,1.46575585]
[1768710434350,0.96800588,3314.5,3313.5,1.46575585]
[1768710434653,0.96800588,3314.4,3313.5,1.46575585]
[1768710434854,0.00251032,3314.8,3313.5,1.46575585]
[1768710435152,0.96783904,3314.7,3313.5,1.46575585]
[1768710435448,0.96783904,3314.6,3313.5,1.46575585]
[1768710435655,0.96783904,3314.5,3313.5,1.46575585]
[1768710435952,0.96783904,3314.4,3313.5,1.46575585]
[1768710436153,0.00251032,3314.8,3313.5,1.46575585]
[1768710436353,0.96781846,3314.7,3313.5,1.46575585]
[1768710436554,0.96781846,3314.6,3313.5,1.46575585]
[1768710436755,0.96781846,3314.5,3313.5,1.46575585]
[1768710436954,0.96781846,3314.4,3313.5,1.46575585]
[1768710437150,0.00251032,3314.8,3313.5,1.46575585]
[1768710437345,0.96779891,3314.7,3313.5,1.46575585]
[1768710437545,0.96779891,3314.6,3313.5,1.46575585]
[1768710437746,0.96779891,3314.5,3313.5,1.46575585]
[1768710438045,0.96779891,3314.4,3313.5,1.46575585]
[1768710438246,0.00251032,3314.8,3313.5,1.46575585]
[1768710438450,0.96777968,3314.7,3313.5,1.46575585]
[1768710438650,0.96777968,3314.6,3313.7,0.97204644]
[1768710438850,0.00251032,3314.8,3313.9,0.97204644]
[1768710439052,0.967861,3314.7,3313.9,0.97204644]
[1768710439257,0.00251032,3314.8,3313.9,0.97204644]
[1768710439447,0.96760362,3314.7,3313.9,0.97204644]
[1768710439642,0.00251032,3314.8,3313.9,0.97204644]
[1768710439842,0.96761752,3314.7,3313.9,0.97204644]
[1768710440046,0.00251032,3314.8,3313.9,0.97204644]
[1768710440254,0.96761178,3314.7,3313.9,0.97204644]
[1768710440450,0.00251032,3314.8,3313.9,0.97204644]
[1768710443155,0.00251032,3314.8,3313.9,1.49760081]
[1768710453167,0.00251032,3314.8,3313.9,0.52555437]
[1768710471193,0.97455676,3314.8,3313.9,0.52555437]
[1768710472288,0.00251032,3314.8,3313.9,0.52555437]
[1768710472491,0.97455676,3314.8,3313.9,0.52555437]
[1768710483301,0.00251032,3314.8,3313.9,0.52555437]
[1768710486900,0.00251032,3314.8,3313.6,0.15094]
[1768710487803,0.00251032,3314.8,3313.6,0.65269471]
[1768710490709,0.00251032,3314.8,3313.7,0.50175471]
[1768710545360,0.00251032,3314.8,3313.7,1.47363477]
[1768710545556,0.00251032,3314.8,3313.8,0.52801128]
[1768710553067,0.00251032,3314.8,3313.8,1.49989134]
[1768710553269,0.00251032,3314.8,3313.9,0.52801128]
[1768710600803,2.16768644,3315.9,3314.7,0.50031119]
[1768710601008,0.96360661,3315.8,3314.7,0.50031119]
[1768710601202,0.96360661,3315.7,3315.0,1.47219125]
[1768710601403,0.69796247,3316.0,3315.1,0.50031119]
[1768710601803,0.70088343,3316.0,3315.1,0.50031119]
[1768710602108,0.97188006,3315.2,3314.0,0.50031119]
[1768710602309,0.97188006,3314.8,3313.9,0.15092]
[1768710603009,0.53134693,3315.7,3314.1,1.47219125]
[1768710603213,0.97188006,3315.5,3314.1,1.47219125]
[1768710604114,0.97188006,3315.3,3314.1,0.50031119]
[1768710605317,0.53134693,3315.6,3314.1,0.50031119]
[1768710606322,0.53134693,3315.6,3313.9,0.15092]
[1768710610921,0.53134693,3315.5,3313.9,0.15092]
[1768710613418,0.95799932,3315.4,3313.9,0.15092]
[1768710613615,0.95799932,3315.3,3313.9,0.15092]
[1768710613815,0.95799932,3315.2,3313.9,0.15092]
[1768710614010,0.95799932,3315.1,3313.9,0.65123119]
[1768710614212,0.53134693,3315.4,3313.9,0.65123119]
[1768710614411,0.95800987,3315.3,3313.9,0.65123119]
[1768710614618,0.95800987,3315.2,3313.9,0.65123119]
[1768710614824,0.95800987,3315.1,3313.9,0.65123119]
[1768710615016,0.53134693,3315.4,3313.9,0.65123119]
[1768710615321,0.95414634,3315.3,3313.9,0.65123119]
[1768710615622,0.95414634,3315.2,3313.9,0.65123119]
[1768710615807,0.95414634,3315.1,3313.9,0.65123119]
[1768710616008,0.53134693,3315.4,3313.9,0.65123119]
[1768710616213,0.95417067,3315.3,3313.9,0.65123119]
[1768710616419,0.95417067,3315.2,3313.9,0.65123119]
[1768710616619,0.95417067,3315.1,3313.9,0.65123119]
[1768710616822,0.53134693,3315.4,3313.9,0.65123119]
[1768710617021,0.95419141,3315.3,3313.9,0.65123119]
[1768710617215,0.95419141,3315.2,3313.9,0.65123119]
[1768710617416,0.95419141,3315.1,3313.9,0.65123119]
[1768710617617,0.53134693,3315.4,3313.9,0.65123119]
[1768710617817,0.95419959,3315.3,3313.9,0.65123119]
[1768710618018,0.95419959,3315.2,3313.9,0.65123119]
[1768710618221,0.95419959,3315.1,3313.9,0.65123119]
[1768710618421,0.53134693,3315.4,3313.9,0.65123119]
[1768710618725,0.95425224,3315.3,3313.9,0.65123119]
[1768710618915,0.95425224,3315.2,3313.9,0.65123119]
[1768710619116,0.95425224,3315.1,3313.9,0.65123119]
[1768710619330,0.53134693,3315.4,3313.9,0.65123119]
[1768710619513,0.9542633,3315.3,3313.9,0.50031119]
[1768710619714,0.9542633,3315.2,3313.7,0.146]
[1768710620017,0.9542633,3315.1,3313.7,0.146]
[1768710620222,0.9542633,3315.0,3313.7,0.146]
[1768710620423,0.53134693,3315.3,3313.7,0.146]
[1768710620623,0.95425292,3315.2,3313.7,0.146]
[1768710620823,0.95425292,3315.1,3313.7,0.146]
[1768710621140,0.95425292,3315.0,3313.7,0.146]
[1768710621325,0.53134693,3315.3,3313.7,0.146]
[1768710621526,0.97177729,3315.6,3313.6,2.42092007]
[1768710621527,0.53134693,3315.1,3313.6,2.42092007]
[1768710621725,0.53134693,3314.9,3313.6,2.42092007]
[1768710633337,2.47701145,3314.8,3313.3,0.15095]
[1768710633528,0.95481598,3314.7,3313.3,0.15095]
[1768710633736,0.95481598,3314.6,3313.3,0.15095]
[1768710633935,1.52219547,3314.8,3313.3,0.15095]
[1768710634136,0.95460392,3314.7,3313.3,0.15095]
[1768710634337,0.95460392,3314.6,3313.3,0.15095]
[1768710634643,0.95460392,3314.5,3313.3,0.15095]
[1768710634942,1.52219547,3314.8,3313.3,0.15095]
[1768710635144,0.95442582,3314.7,3313.3,0.15095]
[1768710635341,0.95442582,3314.6,3313.3,0.15095]
[1768710635541,1.52219547,3314.8,3313.3,0.15095]
[1768710635744,1.50606642,3314.7,3313.3,0.15095]
[1768710635943,0.95423086,3314.6,3313.3,0.15095]
[1768710636132,0.95423086,3314.6,3313.0,0.54789149]
[1768710636445,1.50606642,3314.6,3313.0,0.54789149]
[1768710636634,0.95423086,3314.5,3313.0,0.54789149]
[1768710636831,0.55183556,3314.6,3313.0,0.54789149]
[1768710637036,1.5058589,3314.5,3313.0,0.54789149]
[1768710637344,0.55183556,3314.5,3313.0,0.54789149]
[1768710640332,0.55183556,3314.5,3312.8,0.00285514]
[1768710640534,0.55183556,3314.3,3312.8,0.00285514]
[1768710641638,0.95304579,3314.2,3312.8,0.00285514]
[1768710641845,1.50482961,3314.1,3312.8,0.00285514]
[1768710642043,0.55183556,3314.1,3312.8,0.00285514]
[1768710643654,0.95230858,3314.0,3312.8,0.00285514]
[1768710643944,0.55183556,3314.1,3312.8,0.00285514]
[1768710644149,0.95230879,3314.0,3312.8,0.00285514]
[1768710644345,0.55183556,3314.1,3312.8,0.00285514]
[1768710644542,0.95200777,3314.0,3312.8,0.00285514]
[1768710644748,0.55183556,3314.1,3312.8,0.00285514]
[1768710644946,0.95372479,3314.0,3312.8,0.00285514]
[1768710645146,0.55183556,3314.1,3312.8,0.00285514]
[1768710648652,0.12083556,3314.1,3312.8,0.00285514]
[1768710657757,0.9531305,3314.0,3312.8,0.00285514]
[1768710657949,0.12083556,3314.1,3312.8,0.00285514]
[1768710658148,0.95314092,3314.0,3312.8,0.00285514]
[1768710658358,0.12083556,3314.1,3312.8,0.00285514]
[1768710658559,0.95326649,3314.0,3312.8,0.00285514]
[1768710658861,0.12083556,3314.1,3312.8,0.00285514]
[1768710659047,0.95326581,3314.0,3312.8,0.00285514]
[1768710659249,0.12083556,3314.1,3312.8,0.00285514]
[1768710659544,0.95327677,3314.0,3312.8,0.00285514]
[1768710659742,0.12083556,3314.1,3312.8,0.00285514]
[1768710659942,0.95342533,3314.0,3312.8,0.00285514]
[1768710660146,0.12083556,3314.1,3312.8,0.00285514]
[1768710660349,0.95342419,3314.0,3312.8,0.00285514]
[1768710660546,0.12083556,3314.1,3312.8,0.00285514]
[1768710660742,0.953607,3314.0,3312.8,0.00285514]
[1768710660951,0.12083556,3314.1,3312.8,0.00285514]
[1768710661159,1.92538459,3314.0,3312.8,0.00285514]
[1768710661344,0.9536073,3313.9,3312.8,0.00285514]
[1768710665560,1.50277208,3313.9,3312.8,0.00285514]
[1768710665754,0.9536073,3313.8,3312.3,0.52919299]
[1768710666360,0.9536073,3313.7,3312.3,0.52919299]
[1768710666662,0.9536073,3313.6,3312.3,0.53214727]
[1768710666858,0.00368441,3313.6,3312.3,0.53214727]
[1768710667365,0.97279804,3313.5,3312.3,0.53214727]
[1768710667750,0.97279804,3313.5,3312.3,0.00295428]
[1768710667955,0.97279804,3313.3,3312.3,0.00295428]
[1768710671360,0.97279804,3313.5,3312.3,0.53214727]
[1768710671561,0.00368441,3313.6,3312.6,0.97279804]
[1768710671870,0.00368441,3313.6,3312.5,0.52919299]
[1768710674265,0.97279804,3313.1,3312.3,0.00295428]
[1768710674466,0.97279804,3312.9,3312.3,0.00295428]
[1768710674666,0.97279804,3313.2,3312.3,0.00295428]
[1768710675470,0.97279804,3313.0,3311.7,0.62919299]
[1768710676569,0.97279804,3313.0,3311.7,0.63280047]
[1768710677668,0.97279804,3313.0,3311.7,0.10360748]
[1768710677876,0.97279804,3312.6,3311.7,0.10360748]
[1768710678063,0.97279804,3312.8,3311.7,0.10360748]
[1768710678371,0.97279804,3312.9,3311.7,0.10360748]
[1768710678561,0.95640181,3312.8,3311.7,0.10360748]
[1768710678764,0.97279804,3312.9,3311.7,0.10360748]
[1768710678960,0.95640315,3312.8,3311.7,0.10360748]
[1768710679165,0.97279804,3312.9,3311.7,0.10360748]
[1768710679775,0.97279804,3312.9,3311.7,0.63280047]
[1768710680779,0.97279804,3313.1,3311.8,0.52919299]
[1768710680979,0.95583323,3313.0,3311.9,0.52919299]
[1768710681175,0.97279804,3313.1,3311.9,0.52919299]
[1768710684284,0.95575703,3313.0,3311.9,0.52919299]
[1768710684475,0.97279804,3313.1,3311.9,0.52919299]
[1768710684675,0.95575724,3313.0,3311.9,0.52919299]
[1768710684875,0.97279804,3313.1,3311.9,0.52919299]
[1768710685075,0.95585326,3313.0,3311.9,0.52919299]
[1768710685271,0.97279804,3312.7,3311.7,0.10360748]
[1768710686283,0.97279804,3312.9,3311.7,0.10360748]
[1768710691387,0.97279804,3312.9,3311.7,0.67518295]
[1768710691991,1.682,3313.5,3311.7,0.67518295]
[1768710692293,0.97279804,3313.2,3311.7,0.67518295]
[1768710692482,0.95585616,3313.1,3311.7,0.67518295]
[1768710694286,0.95585616,3313.0,3311.8,0.57157547]
[1768710697393,0.95585616,3313.0,3311.7,0.10360748]
[1768710697591,0.97279804,3312.5,3311.7,0.10360748]
[1768710697783,0.97279804,3312.8,3311.7,0.10360748]
[1768710702796,0.56261845,3313.1,3311.7,0.10360748]
[1768710702797,0.97279804,3313.0,3311.7,0.10360748]
[1768710703089,0.95724021,3312.9,3311.7,0.10360748]
[1768710703402,0.95762112,3312.8,3311.7,0.10360748]
[1768710703595,0.97279804,3313.0,3311.7,0.10360748]
[1768710703803,0.97279804,3312.8,3311.7,0.10360748]
[1768710704307,0.97279804,3312.6,3311.7,0.10360748]
[1768710704995,0.56261845,3312.8,3311.4,0.15104]
[1768710705200,1.93100215,3312.7,3311.4,0.72334907]
[1768710705401,0.95820411,3312.6,3311.4,0.72334907]
[1768710706000,0.95820411,3312.6,3311.4,0.72576991]
[1768710706798,0.97279804,3312.8,3311.5,0.57230907]
[1768710706998,0.95842559,3312.7,3311.5,0.57230907]
[1768710707197,0.97279804,3312.8,3311.5,0.57230907]
[1768710707198,0.95842559,3312.6,3311.5,0.57230907]
[1768710707403,0.97279804,3312.8,3311.5,0.57230907]
[1768710707603,0.97279804,3312.6,3311.5,0.57230907]
[1768710710207,0.97279804,3312.4,3311.4,0.15346084]
[1768710712702,0.97279804,3312.0,3311.4,0.00242084]
[1768710713209,0.97279804,3312.2,3311.4,0.00242084]
[1768710714107,0.97279804,3311.9,3310.7,0.15107]
[1768710714307,0.97279804,3311.9,3310.8,0.55800053]
[1768710714512,0.97279804,3312.1,3310.8,1.53079857]
[1768710715103,0.97279804,3312.1,3310.8,1.53396788]
[1768710717713,0.97279804,3312.1,3310.9,0.55800053]
[1768710718617,0.97279804,3312.2,3310.9,0.55800053]
[1768710725717,0.97279804,3312.7,3311.4,0.97279804]
[1768710725917,0.95689491,3312.6,3311.4,0.97279804]
[1768710726112,0.95689491,3312.6,3311.3,0.55800053]
[1768710726113,0.95689491,3312.5,3311.3,0.55800053]
[1768710726315,0.95689491,3312.4,3311.3,0.55800053]
[1768710726513,0.97279804,3312.7,3311.3,0.55800053]
[1768710726719,0.95697309,3312.6,3311.3,0.55800053]
[1768710727017,0.95697309,3312.5,3311.3,0.55800053]
[1768710727213,0.97279804,3312.7,3311.3,0.55800053]
[1768710727417,0.95708781,3312.6,3311.3,0.55800053]
[1768710727614,0.95708781,3312.5,3311.3,0.55800053]
[1768710727811,0.97279804,3312.7,3311.3,0.55800053]
[1768710728023,0.95708776,3312.6,3311.3,0.55800053]
[1768710728224,0.95708776,3312.5,3311.3,0.55800053]
[1768710728524,0.97279804,3312.7,3311.3,0.55800053]
[1768710728717,0.95715154,3312.6,3311.3,0.55800053]
[1768710728917,0.95715154,3312.5,3311.3,0.55800053]
[1768710729117,0.97279804,3312.7,3311.3,0.55800053]
[1768710729319,0.95716652,3312.6,3311.3,0.55800053]
[1768710729623,0.5464097,3313.1,3311.3,0.55800053]
[1768710729825,0.95725956,3313.0,3311.3,0.55800053]
[1768710730026,0.95725956,3312.9,3311.3,0.55800053]
[1768710730219,0.95725956,3312.8,3311.3,0.55800053]
[1768710730420,0.95725956,3312.7,3311.3,0.55800053]
[1768710730620,0.95725956,3312.6,3311.3,0.55800053]
[1768710730819,0.5464097,3313.1,3311.3,0.55800053]
[1768710731027,0.95733799,3313.0,3311.3,0.55800053]
[1768710731327,0.97325448,3312.3,3310.8,0.56116984]
[1768710731528,1.503645,3312.2,3310.5,0.15108]
[1768710731729,0.9572353,3312.1,3310.5,0.15108]
[1768710731929,0.5464097,3312.2,3310.6,0.55800053]
[1768710732120,0.95723863,3312.1,3310.6,0.55800053]
[1768710732316,0.5464097,3312.2,3310.6,0.55800053]
[1768710732519,0.9572025,3312.1,3310.6,0.56142452]
[1768710732721,0.5464097,3312.2,3310.6,0.56142452]
[1768710733017,0.95720285,3312.1,3310.6,0.56142452]
[1768710733224,0.5464097,3312.2,3310.6,0.56142452]
[1768710733419,0.9572058,3312.1,3310.6,0.56142452]
[1768710733626,0.5464097,3312.2,3310.6,0.56142452]
[1768710733829,0.95720569,3312.1,3310.6,0.56142452]
[1768710734031,0.5464097,3312.2,3310.6,0.56142452]
[1768710734327,0.95720523,3312.1,3310.6,0.56142452]
[1768710734535,0.97325448,3312.5,3310.6,0.56142452]
[1768710734717,0.95722552,3312.4,3310.6,0.56142452]
[1768710734918,0.95722552,3312.3,3310.6,0.56142452]
[1768710735121,0.95722552,3312.2,3310.6,0.56142452]
[1768710735422,0.97325448,3312.5,3310.6,0.56142452]
[1768710735619,0.95841254,3312.4,3310.6,0.56142452]
[1768710735828,0.95841254,3312.3,3310.6,0.56142452]
[1768710736020,0.95841254,3312.2,3310.6,0.56142452]
[1768710736224,0.97325448,3312.5,3310.6,0.56142452]
[1768710736426,0.5464097,3312.3,3310.6,0.56142452]
[1768710736628,0.97325448,3312.1,3310.6,0.56142452]
[1768710736824,1.51966418,3312.1,3310.6,0.56142452]
[1768710737133,0.95838851,3312.0,3310.6,0.56142452]
[1768710737336,1.51966418,3312.1,3310.6,0.56142452]
[1768710737534,0.95834332,3312.0,3310.6,0.56142452]
[1768710737741,1.51966418,3312.1,3310.6,0.56142452]
[1768710737921,0.95834735,3312.0,3310.6,0.56142452]
[1768710738230,1.51966418,3312.1,3310.6,0.56142452]
[1768710738427,0.95831944,3312.0,3310.6,0.56142452]
[1768710738727,1.51966418,3312.1,3310.6,0.56142452]
[1768710738923,0.958315,3312.0,3310.6,0.56142452]
[1768710739126,1.51966418,3312.1,3310.6,0.56142452]
[1768710739323,0.95836954,3312.0,3310.6,0.56142452]
[1768710739522,1.51966418,3312.1,3310.6,0.56142452]
[1768710739726,0.95830654,3312.0,3310.6,0.56142452]
[1768710739926,1.51966418,3312.1,3310.6,0.00342399]
[1768710740127,0.95830459,3312.0,3310.6,0.00342399]
[1768710740332,1.51966418,3312.1,3310.6,0.00342399]
[1768710740532,0.95832482,3312.0,3310.6,0.00342399]
[1768710740734,1.51966418,3312.1,3310.6,0.00342399]
[1768710741032,0.9583252,3312.0,3310.6,0.00342399]
[1768710741223,1.51966418,3312.1,3310.6,0.00342399]
[1768710741421,0.95835936,3312.0,3310.6,0.00342399]
[1768710741625,1.51966418,3312.1,3310.6,0.00342399]
[1768710741827,0.95835856,3312.0,3310.6,0.00342399]
[1768710742134,1.51966418,3312.1,3310.6,0.00342399]
[1768710742335,0.95845147,3312.0,3310.6,0.00342399]
[1768710742523,1.51966418,3312.1,3310.6,0.00342399]
[1768710742723,0.95841932,3312.0,3310.6,0.00342399]
[1768710742933,1.51966418,3312.1,3310.6,0.00342399]
[1768710743137,0.95841932,3312.0,3310.6,0.00342399]
[1768710743327,1.51966418,3312.1,3310.6,0.00342399]
[1768710743528,0.95839528,3312.0,3310.6,0.00342399]
[1768710743730,1.51966418,3312.1,3310.6,0.00342399]
[1768710743925,0.95839624,3312.0,3310.6,0.00342399]
[1768710744129,1.51966418,3312.1,3310.6,0.00342399]
[1768710744331,0.95836736,3312.0,3310.6,0.00342399]
[1768710744530,1.51966418,3312.1,3310.6,0.00342399]
[1768710744731,0.95834958,3312.0,3310.6,0.00342399]
[1768710744935,1.51966418,3312.1,3310.6,0.00342399]
[1768710745232,0.95834958,3312.0,3310.6,0.00342399]
[1768710745532,1.51966418,3312.1,3310.6,0.00342399]
[1768710745736,1.4948647,3312.0,3310.6,0.00342399]
[1768710745938,0.53655599,3312.0,3310.6,0.00342399]
[1768710757245,0.95814995,3311.9,3310.6,0.00342399]
[1768710757451,0.53655599,3312.0,3310.6,0.00342399]
[1768710757651,0.95814477,3311.9,3310.6,0.00342399]
[1768710757950,0.53655599,3312.0,3310.6,0.00342399]
[1768710758153,0.95813176,3311.9,3310.6,0.00342399]
[1768710758350,0.53655599,3312.0,3310.6,0.00342399]
[1768710758550,0.95827262,3311.9,3310.6,0.00342399]
[1768710758745,0.95820708,3311.8,3310.6,0.00342399]
[1768710759050,0.55174712,3312.4,3310.6,0.52494866]
[1768710759249,1.83180099,3312.3,3310.6,0.52494866]
[1768710759449,1.28005387,3312.2,3310.6,0.52494866]
[1768710759748,0.95824042,3312.1,3310.6,0.52494866]
[1768710759956,0.95824042,3312.0,3310.6,0.52494866]
[1768710760253,0.95824042,3311.9,3310.6,0.52494866]
[1768710760452,0.95824042,3311.8,3310.6,0.52494866]
[1768710760653,0.55174712,3312.3,3310.6,0.52494866]
[1768710760854,1.28066457,3312.2,3310.6,0.52494866]
[1768710761055,0.95875134,3312.1,3310.6,0.52494866]
[1768710761248,0.95875134,3312.0,3310.6,0.52494866]
[1768710761448,0.95875134,3311.9,3310.6,0.52494866]
[1768710761650,0.95875134,3311.8,3310.6,0.52494866]
[1768710761845,0.55174712,3312.3,3310.6,0.52494866]
[1768710762047,1.28148144,3312.2,3310.6,0.52494866]
[1768710762247,1.28148144,3312.1,3310.6,0.52494866]
[1768710762447,0.95936279,3312.0,3310.6,0.52494866]
[1768710762655,0.95936279,3311.9,3310.6,0.52494866]
[1768710762961,0.55174712,3312.7,3310.9,0.52152467]
[1768710763255,1.28166462,3312.6,3310.9,0.52152467]
[1768710763457,1.28166462,3312.5,3310.9,0.52152467]
[1768710763759,0.55174712,3312.7,3310.9,0.52152467]
[1768710763760,0.95950158,3312.4,3310.9,0.52152467]
[1768710763953,0.95950158,3312.3,3310.9,0.52152467]
[1768710764150,0.95950158,3312.2,3310.9,0.52152467]
[1768710764449,0.55174712,3312.7,3310.9,0.52152467]
[1768710764450,0.95950158,3312.1,3310.9,0.52152467]
[1768710764652,0.55174712,3312.7,3310.9,0.52152467]
[1768710764653,0.55174712,3312.7,3311.0,0.52152467]
[1768710764854,1.26847304,3312.6,3311.0,0.52152467]
[1768710765153,0.95924086,3312.5,3311.0,0.52152467]
[1768710765353,0.95924086,3312.4,3311.0,0.52152467]
[1768710765555,0.95924086,3312.3,3311.0,0.52152467]
[1768710765756,0.95924086,3312.2,3311.0,0.52152467]
[1768710765960,0.95924086,3312.1,3311.0,0.52152467]
[1768710766162,0.55174712,3312.7,3311.0,0.52152467]
[1768710766364,1.27022571,3312.6,3311.0,0.52152467]
[1768710766661,2.16768644,3313.0,3310.8,0.97325448]
[1768710766662,0.96104655,3312.5,3311.3,0.52152467]
[1768710766960,0.55174712,3313.0,3311.3,0.52152467]
[1768710767160,0.96107901,3312.9,3311.3,0.52152467]
[1768710767353,0.96107901,3312.8,3311.3,0.52152467]
[1768710767554,0.96107901,3312.7,3311.3,0.52152467]
[1768710767754,0.96107901,3312.6,3311.3,0.52152467]
[1768710767959,0.55174712,3313.0,3311.3,0.52152467]
[1768710768259,0.9607027,3312.9,3311.3,0.52152467]
[1768710768461,0.9607027,3312.8,3311.3,0.52152467]
[1768710768762,0.9607027,3312.7,3311.3,0.52152467]
[1768710768964,0.9607027,3312.6,3311.3,0.52152467]
[1768710769154,0.55174712,3313.0,3311.3,0.52152467]
[1768710769355,0.96043144,3312.9,3311.3,0.52152467]
[1768710769554,0.96043144,3312.8,3311.3,0.52152467]
[1768710769762,0.96043144,3312.7,3311.3,0.52152467]
[1768710769962,0.96043144,3312.6,3311.3,0.52152467]
[1768710770166,0.55174712,3313.0,3311.3,0.52152467]
[1768710770466,0.96022192,3312.9,3311.3,0.52152467]
[1768710770766,0.96022192,3312.8,3311.3,0.52152467]
[1768710770967,0.96022192,3312.7,3311.3,0.52152467]
[1768710771266,0.55174712,3313.0,3311.3,0.52152467]
[1768710771468,0.95993447,3312.9,3311.3,0.52152467]
[1768710771668,0.95993447,3312.8,3311.3,0.52152467]
[1768710771869,0.95993447,3312.7,3311.3,0.52152467]
[1768710772069,0.55174712,3313.0,3311.3,0.52152467]
[1768710772270,0.95993588,3312.9,3311.3,0.52152467]
[1768710772569,0.95993588,3312.8,3311.3,0.52152467]
[1768710772771,0.95993588,3312.7,3311.3,0.52152467]
[1768710772970,1.47132333,3313.3,3311.3,0.52152467]
[1768710773268,1.26873288,3313.2,3311.3,0.52152467]
[1768710773462,1.47132333,3313.3,3311.3,0.52152467]
[1768710773463,0.95990276,3313.1,3311.3,0.52152467]
[1768710773665,0.95990276,3313.0,3311.3,0.52152467]
[1768710773864,0.95990276,3312.9,3311.3,0.52152467]
[1768710774064,0.95990276,3312.8,3311.3,0.52152467]
[1768710774264,0.95990276,3312.7,3311.3,0.52152467]
[1768710774460,0.49806885,3313.3,3311.4,0.524302]
[1768710774666,0.95969889,3313.2,3311.4,0.524302]
[1768710774977,0.95969889,3313.1,3311.4,0.524302]
[1768710775173,0.95969889,3313.0,3311.4,0.524302]
[1768710775376,0.95969889,3312.9,3311.4,0.524302]
[1768710775675,0.95969889,3312.8,3311.4,0.524302]
[1768710775971,0.49806885,3313.3,3311.4,0.524302]
[1768710776272,0.95959149,3313.2,3311.4,0.524302]
[1768710776471,0.95959149,3313.1,3311.4,0.524302]
[1768710776674,0.95959149,3313.0,3311.4,0.524302]
[1768710776861,0.95959149,3312.9,3311.4,0.524302]
[1768710777061,0.95959149,3312.8,3311.4,0.524302]
[1768710777274,0.95959149,3312.7,3311.4,0.524302]
[1768710777474,0.49806885,3313.3,3311.4,0.524302]
[1768710777666,1.26806678,3313.2,3311.4,0.524302]
[1768710777866,0.95939927,3313.1,3311.4,0.524302]
[1768710778066,0.95939927,3313.0,3311.4,0.524302]
[1768710778273,0.95939927,3312.9,3311.4,0.524302]
[1768710778473,0.95939927,3312.8,3311.4,0.524302]
[1768710778666,0.95939927,3312.7,3311.4,0.524302]
[1768710778862,0.49806885,3313.3,3311.4,0.524302]
[1768710779066,1.26796772,3313.2,3311.4,0.524302]
[1768710779268,0.95932447,3313.1,3311.4,0.524302]
[1768710779565,0.95932447,3313.0,3311.4,0.524302]
[1768710779766,0.95932447,3312.9,3311.4,0.524302]
[1768710779973,0.95932447,3312.8,3311.4,0.524302]
[1768710780172,0.95932447,3312.7,3311.4,0.524302]
[1768710780373,0.49806885,3313.3,3311.4,0.524302]
[1768710780574,1.26777799,3313.2,3311.4,0.524302]
[1768710780862,0.959181,3313.1,3311.4,0.524302]
[1768710781066,0.49806885,3313.3,3311.4,0.524302]
[1768710781067,0.959181,3313.0,3311.4,0.524302]
[1768710781278,0.959181,3312.9,3311.4,0.524302]
[1768710781478,0.959181,3312.8,3311.4,0.524302]
[1768710781678,0.49806885,3313.3,3311.4,0.524302]
[1768710781882,1.76546239,3313.2,3311.4,0.524302]
[1768710782072,0.95889028,3313.1,3311.4,0.524302]
[1768710782276,0.95889028,3313.0,3311.4,0.524302]
[1768710782581,0.95889028,3312.9,3311.4,0.524302]
[1768710782782,0.95889028,3312.8,3311.4,0.524302]
[1768710782972,0.97325448,3313.1,3311.4,0.524302]
[1768710783172,0.95888224,3313.0,3311.4,0.524302]
[1768710783371,0.95888224,3312.9,3311.4,0.524302]
[1768710783574,0.95888224,3312.8,3311.4,0.524302]
[1768710783874,0.97325448,3313.1,3311.4,0.524302]
[1768710784177,0.95890016,3313.0,3311.4,0.524302]
[1768710784382,0.95890016,3312.9,3311.4,0.524302]
[1768710784578,0.95890016,3312.8,3311.4,0.524302]
[1768710784780,0.97325448,3313.1,3311.4,0.524302]
[1768710784978,0.95893855,3313.0,3311.4,0.524302]
[1768710785173,0.95893855,3312.9,3311.4,0.524302]
[1768710785382,0.95893855,3312.8,3311.4,0.524302]
[1768710785574,0.97325448,3313.1,3311.4,0.524302]
[1768710785774,0.95899603,3313.0,3311.4,0.524302]
[1768710786074,0.95899603,3312.9,3311.4,0.524302]
[1768710786368,0.95899603,3312.8,3311.4,0.524302]
[1768710786569,0.97325448,3313.1,3311.4,0.524302]
[1768710786772,0.95907138,3313.0,3311.4,0.524302]
[1768710787073,0.95907138,3312.9,3311.4,0.524302]
[1768710787269,0.95907138,3312.8,3311.4,0.524302]
[1768710787474,0.97325448,3313.1,3311.4,0.524302]
[1768710787680,0.95917283,3313.0,3311.4,0.524302]
[1768710787986,0.95917283,3312.9,3311.4,0.524302]
[1768710788185,0.95917283,3312.8,3311.4,0.524302]
[1768710788485,1.47132333,3313.1,3311.4,0.524302]
[1768710788686,0.95948996,3313.0,3311.4,0.524302]
[1768710788884,0.95948996,3312.9,3311.4,0.524302]
[1768710789086,1.47132333,3313.1,3311.4,0.524302]
[1768710789087,0.95948996,3312.8,3311.4,0.524302]
[1768710789387,0.95968373,3312.7,3311.4,0.524302]
[1768710789582,1.47132333,3313.1,3311.4,0.524302]
[1768710789772,0.9596837,3313.0,3311.4,0.524302]
[1768710789983,0.9596837,3312.9,3311.4,0.524302]
[1768710790173,0.9596837,3312.8,3311.4,0.524302]
[1768710790375,0.9596837,3312.7,3311.4,0.524302]
[1768710790585,1.47132333,3313.1,3311.4,0.524302]
[1768710790786,0.95992568,3313.0,3311.4,0.524302]
[1768710790987,0.95992568,3312.9,3311.4,0.524302]
[1768710791284,1.93305355,3312.8,3311.5,0.97312787]
[1768710791483,0.95992568,3312.7,3311.5,0.97312787]
[1768710791683,0.95992568,3312.7,3311.5,1.49742987]
[1768710794697,0.95992568,3312.7,3311.6,0.524302]
[1768710796190,0.97312787,3313.0,3311.7,0.97312787]
[1768710796389,0.96048115,3312.9,3311.7,0.97312787]
[1768710796589,0.96048115,3312.8,3311.7,0.97312787]
[1768710796789,0.96048115,3312.7,3311.7,0.97312787]
[1768710797091,0.96048115,3312.6,3311.7,0.97312787]
[1768710797292,0.97312787,3313.0,3311.7,0.97312787]
[1768710797490,0.96077721,3312.9,3311.8,0.524302]
[1768710797694,0.96077721,3312.8,3311.9,1.49742987]
[1768710797895,0.97312787,3313.3,3311.9,1.49742987]
[1768710798200,0.9608329,3313.2,3311.9,1.49742987]
[1768710798400,0.9608329,3313.1,3311.9,1.49742987]
[1768710798601,0.9608329,3313.0,3311.9,1.49742987]